[Event "Summer Chess Classic-B 2022"]
[Site "Saint Louis"]
[Date "2022.06.08"]
[Round "7.2"]
[White "Checa, Nicolas"]
[Black "Harutyunyan, Tigran K."]
[Result "1/2-1/2"]
[ECO "D41"]
[WhiteElo "2533"]
[BlackElo "2550"]
[Annotator "TA"]
[PlyCount "119"]
[EventDate "2022.05.31"]
[EventType "tourn"]
[EventCountry "USA"]
[SourceTitle "playchess.com"]
[Source "ChessBase"]
[SourceQuality "1"]
[TimeControl "40/5400+30:1800+30"]

{[%evp 20,119,10,16,25,7,16,14,16,0,0,0,0,-12,0,-6,56,57,65,-17,-16,-14,0,-36,-38,-24,-28,-41,-31,-128,-122,-122,-118,-120,-126,-118,-133,-120,-89,-94,-94,-98,-89,-87,-84,-80,-81,-348,-83,-77,-83,-83,-83,-61,-5,-112,-112,-112,-112,-112,-104,-152,-89,-89,-71,-103,-81,-148,-148,-148,-148,-148,-148,-148,-148,-148,-112,-112,-112,-112,-112,-112,0,0,0,0,0,0,0,0,0,0,0,0,0,0,0,0,0,0,0,0]} 1. d4 {[%emt 0:02:21]} Nf6 {[%emt 0:00:20]} 2. c4 {[%emt 0:00:25]} e6 {[%emt 0:00:13]} 3. Nc3 {[%emt 0:00:07]} d5 {[%emt 0:00:07]} 4. cxd5 {[%emt 0:00:26]} Nxd5 {[%emt 0:00:12]} 5. e4 {[%emt 0:01:29]} Nxc3 {[%emt 0:00:09]} 6. bxc3 {[%emt 0:00:04]} c5 {[%emt 0:00:08]} 7. Nf3 {[%emt 0:03:43]} cxd4 {[%emt 0:00:28]} 8. cxd4 {[%emt 0:00:05]} Bb4+ {[%emt 0:00:05]} 9. Bd2 {[%emt 0:00:06]} Bxd2+ {[%emt 0:00:06]} 10. Qxd2 {[%emt 0:00:11]} O-O {[%emt 0:00:07]} 11. Rc1 {[%emt 0:05:32]} b6 {[%emt 0:02:09] D41: Queen's Gambit Declined: Semi-Tarrasch with 5 cxd5.} 12. Bd3 {[%emt 0:00:16]} Bb7 {[%emt 0:00:12]} 13. O-O {[%emt 0:00:10]} Nd7 {[%emt 0:00:27][%cal Bb8d7,Bd7c5,Bc5e4][%mdl 32]} 14. Qf4 {[%emt 0:04:49]} h6 {[%emt 0:00:21]} 15. e5 {[%emt 0:05:28]} Rc8 {[%emt 0:13:09]} 16. Nd2 {[%emt 0:01:24] [#]} Nc5 $1 {[%emt 0:18:14]} 17. Bc4 {[%emt 0:08:24] [#]} (17. Be2 Ba6) 17... b5 $146 {[%emt 0:31:54]} (17... Na4 $11) ({Predecessor:} 17... Na6 18. Bb3 Nb4 {½-½ (18) Zakhartsov,V (2544)-Krykun,Y (2325) Riga 2018}) 18. Bxb5 $14 {[%emt 0:11:26]} ({Don't play} 18. dxc5 bxc4 19. Nxc4 Rxc5 $11) 18... Qd5 {[%emt 0:01:10][%csl Gb7,LRa2,LRg2][%cal Rd5g2]} 19. Nf3 {[%emt 0:01:18]} (19. f3 $14 Nb3 20. Nxb3 (20. axb3 Qxb5 21. Qe3 Bd5 $16) 20... Rxc1 21. Rxc1 Qxb5 22. Qd2) 19... Ne4 $11 {[%emt 0:01:08]} 20. Bd3 {[%emt 0:01:47]} Ng5 $40 {[%emt 0:02:57][%mdl 128] White needs to defend precisely.} 21. h4 {[%emt 0:06:41] [#]} Qxf3 $1 {[%emt 0:02:31]} 22. Qxf3 {[%emt 0:00:22]} ({Not} 22. Bh7+ $2 Kxh7 23. Qxf3 Nxf3+ $19) 22... Nxf3+ {[%emt 0:00:34]} 23. gxf3 {[%emt 0:00:05]} Bxf3 {[%emt 0:00:32]} 24. Ba6 {[%emt 0:00:27]} ({White should play} 24. Kh2 $15) 24... Rcd8 $17 {[%emt 0:02:33]} 25. Rc3 {[%emt 0:00:27]} Bh5 {[%emt 0:00:35]} 26. Rfc1 {[%emt 0:02:29]} Rxd4 {[%emt 0:01:20]} 27. Rc4 {[%emt 0:00:02]} Rfd8 {[%emt 0:01:19]} 28. Kg2 {[%emt 0:02:47]} Rxc4 {[%emt 0:03:33]} 29. Rxc4 {[%emt 0:00:08][%mdl 4096] Endgame KRB-KRB} Rd5 {[%emt 0:00:15]} 30. Rc7 {[%emt 0:01:13]} Rxe5 {[%emt 0:02:31]} 31. Rxa7 {[%emt 0:00:17]} Bg6 {[%emt 0:00:36]} 32. f3 {[%emt 0:04:02]} Ra5 {[%emt 0:05:17]} 33. Ra8+ {[%emt 0:00:10]} Kh7 {[%emt 0:00:01]} 34. Bb7 {[%emt 0:00:06]} Rb5 {[%emt 0:00:24]} 35. Ra7 {[%emt 0:02:12]} Rb4 {[%emt 0:02:23]} 36. Kg3 {[%emt 0:00:44]} Bc2 {[%emt 0:01:51] Inhibits a4.} (36... Bh5 $15) 37. h5 {[%emt 0:03:53]} (37. Bc6 $11 {remains equal.}) 37... Rb5 {[%emt 0:00:59]} 38. Bc6 {[%emt 0:04:01][%csl LRb5,LRf7]} Rxh5 {[%emt 0:01:53]} 39. Rxf7 {[%emt 0:00:07]} Rg5+ {[%emt 0:03:17]} 40. Kf4 {[%emt 0:01:42] [#]} (40. Kf2 $142) 40... Ra5 {[%emt 0:02:57]} (40... Rc5 $142 $1 {[%cal Rc5c6]} 41. Bd7 e5+ 42. Kg3 h5) 41. Re7 {[%emt 0:30:48]} e5+ {[%emt 0:03:53]} 42. Kg3 {[%emt 0:00:00]} Rc5 {[%emt 0:01:14]} 43. Be8 {[%emt 0:00:00]} (43. Bd7 $142) 43... Bg6 {[%emt 0:04:13]} 44. Ba4 {[%emt 0:00:00]} h5 {[%emt 0:00:28]} 45. Bb3 {[%emt 0:00:00]} Bf5 {[%emt 0:02:43]} 46. a4 {[%emt 0:00:00]} Kh6 {[%emt 0:00:14]} 47. Rb7 {[%emt 0:00:00]} e4 {[%emt 0:02:22] ...Rc3 is the strong threat.} 48. Rb5 {[%emt 0:00:00]} Rc3 {[%emt 0:00:46]} 49. Rxf5 {[%emt 0:00:00] aiming for Bd5.} Rxb3 {[%emt 0:00:06] KR-KR} 50. Rf4 {[%emt 0:00:00]} exf3 {[%emt 0:09:07]} (50... e3 $17 51. Re4 Ra3) 51. Rxf3 $11 {[%emt 0:00:00] The position is equal.} Rb2 {[%emt 0:00:54] Hoping for ...Ra2.} 52. Ra3 {[%emt 0:00:00] Prevents Ra2.} g5 {[%emt 0:04:36] And now ...h4+ would win.} 53. a5 {[%emt 0:00:00]} h4+ {[%emt 0:00:07]} 54. Kf3 {[%emt 0:00:00]} Kh5 {[%emt 0:02:04]} 55. a6 {[%emt 0:00:00]} g4+ {[%emt 0:00:57]} 56. Kf4 $1 {[%emt 0:00:00] Intending a7 and mate.} Rf2+ {[%emt 0:00:36]} 57. Ke5 {[%emt 0:00:00] White wants to mate with a7.} Rf8 {[%emt 0:02:37]} 58. a7 {[%emt 0:00:00]} Ra8 {[%emt 0:00:22]} 59. Kf4 {[%emt 0:00:00]} g3 {[%emt 0:00:30]} 60. Kf3 {[%emt 0:02:27] And White is the lucky defender.  Weighted Error Value: White=0.15 (very precise) /Black=0.11 (very precise)} 1/2-1/2

[Event "Summer Chess Classic-B 2022"]
[Site "Saint Louis"]
[Date "2022.06.08"]
[Round "7.3"]
[White "Zhou, Jianchao"]
[Black "Ali Marandi, Cemil Can"]
[Result "1/2-1/2"]
[ECO "D33"]
[WhiteElo "2589"]
[BlackElo "2532"]
[Annotator "TA"]
[PlyCount "221"]
[EventDate "2022.05.31"]
[EventType "tourn"]
[EventCountry "USA"]
[SourceTitle "playchess.com"]
[Source "ChessBase"]
[SourceQuality "1"]
[TimeControl "40/5400+30:1800+30"]

{[%evp 83,221,-415,-424,-323,-412,-401,-288,-257,-229,-237,-207,-397,-376,-380,-410,-418,-418,-355,-140,-2844,-2292,-1848,-1619,-538,-380,-368,-354,-354,-354,-353,-210,-306,-8,-35,-8,-8,-8,-8,0,-8,0,-8,0,-1758,-83,-91,-35,-28,-56,-28,-28,-3538,-3179,-2850,-2355,-1054,-62,-89,-28,-28,-28,-1614,-28,-28,-28,-1518,0,-28,-28,-1116,-89,-89,-89,-89,-20,-20,-28,-21,-8,-8,-8,-21,-18,-21,-33,-26,-33,-33,-33,-33,0,-8,0,-8,0,-8,0,-8,-8,-8,-8,-47,0,0,0,-8,-8,-8,-8,-8,-8,-8,-8,-46,-77,-25,-8,-8,-8,-33,-20,-20,0,0,0,0,0,-19,-26,-26,0,0,0,0,0,0,0,0,0,0]} 1. d4 {[%emt 0:00:11]} d5 {[%emt 0:00:03]} 2. c4 {[%emt 0:00:08]} e6 {[%emt 0:00:04]} 3. Nc3 {[%emt 0:00:12]} c5 {[%emt 0:00:06]} 4. cxd5 {[%emt 0:00:07]} exd5 {[%emt 0:00:06]} 5. Nf3 {[%emt 0:00:09]} Nc6 {[%emt 0:00:09]} 6. g3 {[%emt 0:05:11]} Nf6 {[%emt 0:00:30]} 7. Bg2 {[%emt 0:00:03]} cxd4 {[%emt 0:00:09]} 8. Nxd4 {[%emt 0:00:06]} Bc5 {[%emt 0:00:05]} 9. Nb3 {[%emt 0:00:32]} Bb6 {[%emt 0:00:03]} 10. Na4 {[%emt 0:00:16]} O-O {[%emt 0:05:10]} 11. Nxb6 {[%emt 0:01:03]} axb6 {[%emt 0:00:02]} 12. Be3 {[%emt 0:01:04]} h5 {[%emt 0:02:54]} 13. O-O {[%emt 0:23:42]} h4 {[%emt 0:00:37]} 14. gxh4 {[%emt 0:01:57]} Qd6 {[%emt 0:00:58]} 15. Qd2 {[%emt 0:11:09]} Ra4 {[%emt 0:02:45]} 16. Nd4 {[%emt 0:01:12]} Re8 {[%emt 0:13:12]} 17. Bf4 {[%emt 0:12:16]} Qb4 {[%emt 0:10:30]} 18. Qxb4 {[%emt 0:06:06]} Rxb4 {[%emt 0:00:11]} 19. e3 {[%emt 0:10:32]} Nxd4 {[%emt 0:00:35]} 20. exd4 {[%emt 0:00:49]} Rxb2 {[%emt 0:00:33]} 21. Rfb1 {[%emt 0:03:24]} Rxb1+ {[%emt 0:05:01]} 22. Rxb1 {[%emt 0:00:15]} Bf5 {[%emt 0:00:13]} 23. Ra1 {[%emt 0:15:05]} Re2 {[%emt 0:02:37]} 24. f3 {[%emt 0:01:39]} Nh5 {[%emt 0:07:21]} 25. Bc7 {[%emt 0:01:10]} b5 {[%emt 0:00:34]} 26. Bf1 {[%emt 0:00:31]} Rb2 {[%emt 0:00:22]} 27. Re1 {[%emt 0:04:09]} Nf6 {[%emt 0:03:54]} 28. a3 {[%emt 0:00:31]} b4 {[%emt 0:06:59]} 29. axb4 {[%emt 0:00:04]} Rxb4 {[%emt 0:00:04]} 30. Rd1 {[%emt 0:01:25]} b5 {[%emt 0:02:18]} 31. Kf2 {[%emt 0:00:19]} Rb2+ {[%emt 0:02:31]} 32. Ke3 {[%emt 0:00:02]} Ne8 {[%emt 0:11:25]} 33. Bf4 {[%emt 0:00:56]} g6 {[%emt 0:02:19]} 34. Bd3 {[%emt 0:00:41]} Ng7 {[%emt 0:03:00]} 35. Be5 {[%emt 0:00:13]} Rb3 {[%emt 0:05:03]} 36. Ke2 {[%emt 0:00:06]} Bxd3+ {[%emt 0:03:28]} 37. Rxd3 {[%emt 0:00:02]} Rxd3 {[%emt 0:00:09]} 38. Kxd3 {[%emt 0:00:01]} Nf5 {[%emt 0:00:09]} 39. Bg3 {[%emt 0:02:09]} Kf8 {[%emt 0:01:53]} 40. Kc3 {[%emt 0:00:26]} Ke7 {[%emt 0:01:06]} 41. Bf2 {[%emt 0:03:34]} Kd6 {[%emt 0:01:27]} 42. Kb4 {[%emt 0:00:17]} Kc6 {[%emt 0:00:16]} 43. Ka5 {[%emt 0:03:51]} Nd6 $1 {[%emt 0:02:14]} 44. Be1 {[%emt 0:03:49]} Nc4+ {[%emt 0:01:19]} 45. Ka6 {[%emt 0:05:40]} Ne3 {[%emt 0:02:34]} 46. Ka5 {[%emt 0:08:23]} Nf1 {[%emt 0:05:57]} 47. h3 $2 {[%emt 0:03:03]} (47. f4) 47... Nh2 $19 {[%emt 0:08:27]} 48. f4 {[%emt 0:00:04]} Nf3 {[%emt 0:00:16]} 49. Bf2 {[%emt 0:00:04]} f5 $1 {[%emt 0:00:15]} 50. Be3 {[%emt 0:02:20]} Ne1 $2 {[%emt 0:02:33]} (50... Nxh4 $19 {is more deadly.} 51. Bf2 Nf3) 51. Bd2 $2 {[%emt 0:04:28][%mdl 8192]} (51. Bc1 $17) 51... Nd3 $19 {[%emt 0:03:46]} 52. Be3 {[%emt 0:00:14]} Nb2 $1 {[%emt 0:00:33]} ({Not} 52... b4 53. Ka4 $11) 53. Bf2 {[%emt 0:00:30]} Nc4+ {[%emt 0:01:55]} 54. Kb4 {[%emt 0:00:03]} Kb6 $1 {[%emt 0:00:09]} 55. h5 {[%emt 0:00:54]} gxh5 {[%emt 0:00:02]} 56. Bh4 {[%emt 0:00:07]} Kc6 {[%emt 0:03:26]} (56... Ne3 $142 $1 57. Bd8+ Kc6) 57. Bg5 {[%emt 0:00:55]} (57. Be1 {was forced.}) 57... Nb6 $2 {[%emt 0:00:52]} (57... Ne3 $1 $19 {Threatens to win with ...Nc2+.} 58. Ka5 Nc2) 58. h4 {[%emt 0:00:47]} Nd7 {[%emt 0:00:56]} 59. Be7 $1 {[%emt 0:00:19]} Nb8 {[%emt 0:01:55]} 60. Ka5 {[%emt 0:00:15]} Kd7 {[%emt 0:04:16]} 61. Bb4 {[%emt 0:00:58]} Kc6 {[%emt 0:03:38]} 62. Be7 {[%emt 0:00:14]} Nd7 {[%emt 0:00:05]} 63. Bd8 $2 {[%emt 0:00:38][%mdl 8192]} (63. Kb4 $11) 63... Nf8 $1 $19 {[%emt 0:01:13]} 64. Bf6 {[%emt 0:00:10]} Ng6 {[%emt 0:01:36]} ({Black should try} 64... Ne6 $17 65. Be5 Nd8) 65. Bg5 $15 {[%emt 0:00:07]} Nh8 {[%emt 0:00:07]} 66. Be7 {[%emt 0:01:15]} Nf7 {[%emt 0:00:07]} ({Reject} 66... Ng6 $6 67. Bg5 $17) 67. Bf8 $2 {[%emt 0:00:26][%mdl 8192]} (67. Kb4 $11) 67... Nd8 $19 {[%emt 0:00:15]} 68. Bg7 {[%emt 0:00:15]} Nb7+ $1 {[%emt 0:00:27]} ({Stronger than} 68... Ne6 69. Be5 $17) 69. Kb4 {[%emt 0:00:02]} Nd6 $2 {[%emt 0:00:51]} (69... Kb6 $1 $19 {And now ...Nd6 would win.} 70. Bf6 Nd6) 70. Be5 {[%emt 0:00:30]} Nc4 {[%emt 0:00:06]} (70... Ne4 $17 71. Ka5 Nf2) 71. Bf6 $11 {[%emt 0:00:31]} Nd2 {[%emt 0:00:16]} 72. Bg7 $2 {[%emt 0:01:23][%mdl 8192]} (72. Be7 $11) 72... Nf3 $2 {[%emt 0:00:57]} (72... Kb6 $1 $19 73. Bf6 Ne4) 73. Bf6 $11 {[%emt 0:00:03]} Ne1 {[%emt 0:00:19]} 74. Bg5 $2 {[%emt 0:00:45][%mdl 8192]} (74. Ka5 $11) 74... Nf3 $2 {[%emt 0:01:32]} ({Black should play} 74... Kb6 $1 $19 75. Kb3 Ka5) 75. Bf6 $11 {[%emt 0:00:04]} Ng1 {[%emt 0:00:09]} 76. Be5 $2 {[%emt 0:01:06][%mdl 8192] [#]} (76. Ka5 $11) 76... Ne2 $2 {[%emt 0:00:08]} (76... Kb6 $1 $19 {and Black stays clearly on top. Hoping for ...Ne2.} 77. Bf6 Ne2) 77. Ka5 $17 {[%emt 0:00:06]} Nc1 {[%emt 0:00:10]} 78. Bf6 {[%emt 0:00:45] [#]} Nd3 {[%emt 0:00:15]} (78... b4 $1 $17 {[%cal Rb4b3] ( -> ...b3)} 79. Kxb4 Nd3+ 80. Kc3 Nxf4) 79. Bg5 $1 $11 {[%emt 0:00:30]} b4 {[%emt 0:01:13]} 80. Ka4 {[%emt 0:00:07]} Nc1 {[%emt 0:00:18]} 81. Kxb4 {[%emt 0:01:02]} Ne2 {[%emt 0:00:01]} 82. Ka4 {[%emt 0:00:32]} Nxd4 {[%emt 0:00:12]} 83. Kb4 $1 {[%emt 0:00:04]} Ne6 {[%emt 0:02:10]} 84. Bh6 {[%emt 0:00:06]} Kd6 {[%emt 0:00:37]} 85. Kb5 {[%emt 0:01:17]} Nd4+ {[%emt 0:01:30]} 86. Kb4 {[%emt 0:00:03]} Kc6 {[%emt 0:00:37]} (86... Nf3 $5 {[%cal Rf3h4]} 87. Bg5 Nxg5 88. fxg5 f4 $17) 87. Bg5 $1 {[%emt 0:00:29]} Nb5 {[%emt 0:01:00]} 88. Bh6 {[%emt 0:00:56]} Nd4 {[%emt 0:00:14]} 89. Bg5 $1 {[%emt 0:00:06]} Nb5 {[%emt 0:00:40]} 90. Bh6 {[%emt 0:00:18]} Nd6 {[%emt 0:00:05]} 91. Kc3 $1 {[%emt 0:00:31]} Nf7 {[%emt 0:00:31]} 92. Bg5 {[%emt 0:00:29]} Kd6 {[%emt 0:00:12]} (92... Nh8 $1 $15 {is superior.}) 93. Kd4 {[%emt 0:00:14]} Ke6 {[%emt 0:00:01]} 94. Kc5 {[%emt 0:00:30]} Nd6 {[%emt 0:02:25]} 95. Kd4 {[%emt 0:00:24]} Nb5+ {[%emt 0:00:29]} 96. Kc5 {[%emt 0:00:05]} Nc3 {[%emt 0:00:19]} 97. Kd4 {[%emt 0:00:14]} Ne4 {[%emt 0:00:09]} 98. Bh6 {[%emt 0:00:17]} Nd2 {[%emt 0:00:10]} 99. Kc5 {[%emt 0:00:40]} (99. Kd3 $17 Nf3 100. Bg5) 99... Nb3+ {[%emt 0:01:04]} 100. Kb4 {[%emt 0:00:11]} Nd4 {[%emt 0:00:02]} 101. Kc5 {[%emt 0:00:10]} Nc2 {[%emt 0:00:18]} 102. Bg5 {[%emt 0:00:17]} Na3 {[%emt 0:00:53]} 103. Bh6 {[%emt 0:00:10]} Nb1 {[%emt 0:00:12]} 104. Bg5 $1 {[%emt 0:00:15]} Nd2 {[%emt 0:00:07]} 105. Bh6 $1 {[%emt 0:00:23]} Nf3 {[%emt 0:01:27]} 106. Bg5 {[%emt 0:00:02]} d4 {[%emt 0:00:37]} 107. Kc4 {[%emt 0:00:08]} Kd6 {[%emt 0:00:31]} 108. Bf6 {[%emt 0:00:40]} Ke6 {[%emt 0:00:19]} 109. Bg5 {[%emt 0:02:18]} Kd6 {[%emt 0:00:58]} 110. Bf6 {[%emt 0:00:07]} Ke6 {[%emt 0:00:15]} 111. Bg5 {[%emt 0:00:12]} 1/2-1/2

[Event "Summer Chess Classic-B 2022"]
[Site "Saint Louis"]
[Date "2022.06.08"]
[Round "7.5"]
[White "Antipov, Mikhail Al."]
[Black "Yoo, Christopher Woojin"]
[Result "1/2-1/2"]
[ECO "B13"]
[WhiteElo "2592"]
[BlackElo "2535"]
[Annotator "TA"]
[PlyCount "148"]
[EventDate "2022.05.31"]
[EventType "tourn"]
[EventCountry "USA"]
[SourceTitle "playchess.com"]
[Source "ChessBase"]
[SourceQuality "1"]
[TimeControl "40/5400+30:1800+30"]

{[%evp 9,148,14,38,29,31,35,31,32,43,12,17,8,15,6,42,16,15,0,0,0,0,-15,0,0,16,0,26,18,24,30,31,0,0,0,97,54,60,63,64,49,57,24,64,0,0,0,0,-24,-29,-103,-103,-103,-112,-102,-114,-104,-89,-97,-87,-87,-90,-90,-87,-95,-34,-72,39,40,43,-8,-8,-33,-33,-34,-34,-34,-45,-54,-8,-59,-59,-59,-59,-59,-59,-77,-8,-8,-8,-8,-8,-8,-8,-8,-8,-8,-8,-8,-8,-8,-8,-8,-8,-8,-8,-8,0,-8,-8,-8,0,0,0,-8,-8,-8,-8,-8,-8,-8,-8,-8,-8,-8,-8,-8,0,0,0,0,0,0,0,0,0,0,0,0,0,0,0]} 1. e4 {[%emt 0:00:02]} c6 {[%emt 0:01:28]} 2. d4 {[%emt 0:00:05]} d5 {[%emt 0:00:39]} 3. exd5 {[%emt 0:00:05]} cxd5 {[%emt 0:00:07]} 4. Bd3 {[%emt 0:00:02]} Nc6 {[%emt 0:00:07]} 5. c3 {[%emt 0:00:03]} e6 {[%emt 0:00:12]} 6. Nf3 {[%emt 0:00:10] B13: Caro-Kann: Exchange Variation and Panov-Botvinnik Attack.} Bd6 {[%emt 0:00:06]} 7. O-O {[%emt 0:00:11]} Nge7 {[%emt 0:00:08]} 8. Re1 {[%emt 0:01:20] White is slightly better.} O-O {[%emt 0:00:24]} 9. b3 {[%emt 0:19:06]} f6 {[%emt 0:03:54]} 10. c4 {[%emt 0:01:54] [#]} dxc4 $146 {[%emt 0:04:23]} ({Predecessor:} 10... Bd7 11. Nc3 Rc8 12. Bb2 h6 13. Rc1 Bf4 14. Ra1 Bb8 15. Qd2 Qc7 16. Rac1 Qf4 17. Qxf4 Bxf4 {0-1 (77) Gukesh,D (2563)-Wojtaszek,R (2719) Chess.com INT 2020}) 11. Bxc4 {[%emt 0:07:11]} Kh8 {[%emt 0:14:25]} 12. Ba3 {[%emt 0:09:56]} Nd5 {[%emt 0:09:02]} 13. Bxd6 {[%emt 0:00:18]} Qxd6 {[%emt 0:00:04]} 14. Nbd2 {[%emt 0:00:19]} b6 {[%emt 0:01:14]} 15. Qe2 {[%emt 0:20:21]} Re8 {[%emt 0:05:28]} 16. Qe4 {[%emt 0:13:01][%cal Oe4d5]} Re7 {[%emt 0:07:21]} 17. Qh4 {[%emt 0:02:29]} ({Much weaker is} 17. Bd3 g5 18. Bf1 Bb7 $15) (17. Rac1 $5 {[%cal Rc4d5]} Qd7 18. Bd3 $11) 17... Ncb4 {[%emt 0:02:23]} 18. a3 {[%emt 0:05:39]} Nc6 $1 {[%emt 0:00:19]} 19. Ne4 {[%emt 0:04:55]} Qd8 {[%emt 0:05:44]} 20. Bd3 {[%emt 0:00:30]} h6 {[%emt 0:01:52]} 21. Qg3 {[%emt 0:00:40]} e5 {[%emt 0:05:42]} (21... Rd7 $11 {remains equal.}) 22. Nh4 {[%emt 0:07:13] [#] aiming for Ng6+.} Nxd4 {[%emt 0:02:07]} (22... Nf4 $2 23. Ng6+ Nxg6 24. Qxg6 $18) 23. Ng6+ {[%emt 0:05:45]} Kg8 {[%emt 0:00:05]} 24. Nxe7+ {[%emt 0:00:34]} Qxe7 {[%emt 0:00:05]} 25. Bc4 {[%emt 0:00:17]} Be6 {[%emt 0:00:24]} 26. Rad1 {[%emt 0:00:48]} (26. Nc3 $1 $14 Nc7 27. Qd3) 26... Rd8 $1 $11 {[%emt 0:02:00]} 27. Nc3 {[%emt 0:00:29]} Nf4 $1 {[%emt 0:00:40] White must now prevent ...Bxc4. Pair of Knights!} (27... Qxa3 {[#]} 28. Rxd4 $1 {[%mdl 512]} exd4 29. Nb5 $16) 28. Bxe6+ {[%emt 0:00:24]} Qxe6 {[%emt 0:00:20]} 29. Qxf4 {[%emt 0:00:41]} exf4 $17 {[%emt 0:00:11]} 30. Rxe6 {[%emt 0:00:02]} Nxe6 {[%emt 0:00:07]} 31. Rxd8+ {[%emt 0:00:10]} Nxd8 $11 {[%emt 0:00:05][%mdl 4096] Endgame KN-KN} 32. Nd5 {[%emt 0:01:04]} Ne6 {[%emt 0:00:48]} 33. Ne7+ {[%emt 0:00:22]} Kf8 {[%emt 0:00:18]} 34. Nc8 {[%emt 0:00:03]} Nd4 {[%emt 0:00:04]} 35. Nxa7 {[%emt 0:00:45]} Nxb3 {[%emt 0:00:23]} 36. Kf1 {[%emt 0:00:48]} Na5 {[%emt 0:04:03]} (36... Nd4 $17 {Threatens to win with ...b5.} 37. a4 f3) 37. Ke2 $15 {[%emt 0:00:15]} Kf7 {[%emt 0:00:13]} (37... Nc4 $17) 38. Kd3 $1 $14 {[%emt 0:00:43]} Nb7 {[%emt 0:00:33]} 39. Kc4 {[%emt 0:00:45]} (39. Nc8 $14) 39... Ke6 $11 {[%emt 0:02:15]} 40. Kb5 {[%emt 0:00:05]} Nd6+ {[%emt 0:00:34]} 41. Kxb6 {[%emt 0:12:16]} Nc4+ {[%emt 0:00:05]} 42. Kc5 {[%emt 0:00:02]} Nxa3 {[%emt 0:00:04] Hoping for ...Nc2.} 43. Nc6 {[%emt 0:01:00]} g5 {[%emt 0:12:51]} (43... h5 $15) 44. Nd4+ {[%emt 0:03:02]} (44. f3 $1 $11) 44... Ke5 $15 {[%emt 0:00:37]} 45. f3 $1 {[%emt 0:00:08]} f5 {[%emt 0:02:38]} 46. Nc6+ {[%emt 0:02:32]} Kf6 {[%emt 0:00:22] ...Nc2 is the strong threat.} 47. Nb4 {[%emt 0:00:38] Prevents Nc2.} Nb1 {[%emt 0:01:40]} (47... Ke6 $17) 48. Kd4 $11 {[%emt 0:03:27] The position is equal.} Nd2 {[%emt 0:02:22]} 49. Nd5+ $1 {[%emt 0:00:35]} Ke6 {[%emt 0:02:32]} 50. Nc7+ {[%emt 0:00:04]} Kf7 {[%emt 0:01:29]} 51. Nd5 {[%emt 0:01:59]} Nf1 {[%emt 0:00:54]} 52. h4 {[%emt 0:06:10]} Ke6 {[%emt 0:00:58]} 53. hxg5 {[%emt 0:00:08]} hxg5 {[%emt 0:00:03]} 54. Nc7+ $1 {[%emt 0:00:10]} Kf7 {[%emt 0:01:57]} 55. Nd5 {[%emt 0:00:19]} Kg6 {[%emt 0:02:10]} 56. Ne7+ {[%emt 0:00:17]} Kf6 {[%emt 0:00:21]} 57. Nd5+ {[%emt 0:00:03]} Ke6 {[%emt 0:00:18]} 58. Nc7+ $1 {[%emt 0:00:05]} Kd6 {[%emt 0:01:19]} 59. Nb5+ {[%emt 0:00:40]} Kc6 {[%emt 0:00:11]} 60. Nc3 {[%emt 0:00:37]} Kd6 {[%emt 0:04:05]} 61. Nb5+ {[%emt 0:00:03]} Ke7 {[%emt 0:00:10]} 62. Ke5 {[%emt 0:03:32]} Ne3 {[%emt 0:00:04]} 63. Nd4 {[%emt 0:01:13]} Kf7 {[%emt 0:00:06]} 64. Nxf5 {[%emt 0:00:33]} Nxg2 {[%emt 0:00:05]} 65. Nd4 {[%emt 0:00:39]} Nh4 {[%emt 0:01:35]} 66. Ne2 {[%emt 0:00:24]} Nxf3+ {[%emt 0:01:55]} 67. Kf5 {[%emt 0:00:04]} Nh4+ {[%emt 0:00:32]} 68. Kxg5 {[%emt 0:00:05]} f3 {[%emt 0:00:06]} 69. Ng3 {[%emt 0:00:05]} Ng2 {[%emt 0:00:05]} 70. Kg4 {[%emt 0:00:09]} Ne1 {[%emt 0:00:02]} 71. Kf4 {[%emt 0:00:09]} Ke6 {[%emt 0:00:08]} 72. Ke3 {[%emt 0:00:14]} Ke5 {[%emt 0:00:03]} 73. Nf1 {[%emt 0:00:10]} Kf5 {[%emt 0:00:03]} 74. Nh2 {[%emt 0:00:08]} Ke5 {[%emt 0:00:22] Weighted Error Value: White=0.11 (very precise) /Black=0.14 (very precise)} 1/2-1/2